Cogmind - Beta 10.2 @@@ ROGUE MODE // 2021.03.24 @ 15:55:40 Player: Omewes Result: Destroyed by S-43 Plague with Heavy Machine Gun Performance ------------- Evolutions (9) 4500 Regions Visited (20) 4000 Robots Destroyed (194) 970 Value Destroyed (11603) 11603 Prototype IDs (40) 800 Alien Tech Used (0) 0 Bonus (6730) 6730 TOTAL SCORE: 28603 Bonus ------- High Alert Combat Kills 985 Follower Combat Kills 1789 Entered Garrisons 1400 Used RIF Installer 3500 Aligned with FarCom 300 Friendly Fire -1244 Cogmind --------- Core Integrity 0/1600 Matter 280/300 Energy 99/100 System Corruption 11% Temperature Cool (0) Movement Core (50) Location -1/Access Parts ------- > --- POWER (2) -------- (None) > --- PROPULSION (4) --- (None) > --- UTILITY (17) ----- (None) > --- WEAPON (2) ------- (None) > --- INVENTORY (4) ---- Light Quantum Reactor Armored Heavy Treads Relay Coupler [Sentry] (29) Peak State ------------ > --- POWER ------------ Cooled Antimatter Reactor Light Quantum Reactor > --- PROPULSION ------- Armored Heavy Treads Armored Heavy Treads > --- UTILITY ---------- Advanced Cooling System Advanced Cooling System Large Storage Unit High-capacity Storage Unit High-capacity Storage Unit High-capacity Storage Unit High-capacity Storage Unit Advanced Targeting Computer Quantum Capacitor Advanced Phase Shifter Relay Coupler [NC] Relay Coupler [Swarmer] Relay Coupler [Grunt] Relay Coupler [Duelist] Relay Coupler [Sentry] > --- WEAPON ----------- Phase Gun Enhanced Quantum Rifle > --- INVENTORY -------- Light Quantum Reactor Light Quantum Reactor Armored Heavy Treads Flexi-carbon Leg Myomer Leg Myomer Leg Myomer Leg Biometal Leg Biometal Leg Centrium Leg Advanced Power Amplifier Experimental Energy Well Experimental Energy Well Improved Matter Compressor Advanced Terrain Scan Processor Advanced Weapon Cycler Antimissile System Antimissile System Relay Coupler [NC] Relay Coupler [NC] Relay Coupler [NC] Relay Coupler [NC] Relay Coupler [NC] Relay Coupler [Swarmer] Relay Coupler [Swarmer] Relay Coupler [Brawler] Relay Coupler [Brawler] Relay Coupler [Sentry] Relay Coupler [Sentry] Relay Coupler [Sentry] Relay Coupler [Sentry] Relay Coupler [Demolisher] Relay Coupler [Demolisher] Relay Coupler [Demolisher] Relay Coupler [Specialist] Relay Coupler [Behemoth] PSU Rigger Enhanced Quantum Rifle Improved Remote Datajack Advanced Remote Datajack Power Sword [Rating: 147] Favorites ----------- Power Angular Momentum Engine Engine Angular Momentum Engine Power Core Micro Nuclear Core Reactor Cooled Antimatter Reactor Propulsion Myomer Leg Treads Armored Heavy Treads Leg Myomer Leg Wheel Armored Huge Wheel Utility High-capacity Storage Unit Device Advanced Heat Sink Storage High-capacity Storage Unit Processor Advanced Targeting Computer Hackware Relay Coupler [Sentry] Protection Utility Shielding Weapon Improved EM Pulse Cannon Energy Gun Enhanced Quantum Rifle Energy Cannon Improved EM Pulse Cannon Ballistic Gun KE Penetrator Ballistic Cannon Flak Cannon Launcher Missile Launcher Special Weapon Advanced Remote Datajack Impact Weapon Heavy Hammer Slashing Weapon Power Sword Build | -11 -10 -10 -10 -9 -8 -8 -7 -7 -6 -6 -6 -5 -5 -4 -4 -3 -3 -2 -2 -1 ------- Run | Scr Mat Min Exi Min Mat Gar Fac Gar Fac Gar Fac Fac Gar Fac Gar Res Gar Res Gar Acc Slots Evolved 18 | . . . . . 4 . 2 . 2 . . 2 . 2 . 2 . 2 . 2 Power 1 | . . . . . . . 1 . . . . . . . . . . . . . Propulsion 2 | . . . . . . . . . . . . 1 . 1 . . . . . . Utility 15 | . . . . . 4 . 1 . 2 . . 1 . 1 . 2 . 2 . 2 Weapon . | . . . . . . . . . . . . . . . . . . . . . Parts Attached 336 | 6 10 5 1 . 37 8 8 23 3 7 44 3 42 32 18 4 23 6 37 19 Power 33 | 1 1 2 . . 3 2 1 2 . 1 6 . 4 2 . . 2 2 2 2 Engine 18 | 1 1 2 . . 1 2 1 1 . 1 6 . 2 . . . . . . . Core 5 | . . . . . 2 . . 1 . . . . 2 . . . . . . . Reactor 10 | . . . . . . . . . . . . . . 2 . . 2 2 2 2 Propulsion 61 | 2 1 1 . . 6 1 . . . 2 6 1 8 10 4 1 3 2 11 2 Treads 13 | . . . . . 2 . . . . . 2 . 2 3 . . . . 2 2 Leg 25 | . . . . . 1 . . . . . . . 3 2 4 1 3 2 9 . Wheel 23 | 2 1 1 . . 3 1 . . . 2 4 1 3 5 . . . . . . Hover . | . . . . . . . . . . . . . . . . . . . . . Flight . | . . . . . . . . . . . . . . . . . . . . . Utility 109 | 1 3 1 1 . 13 4 2 7 2 4 11 2 11 13 6 2 7 2 12 5 Device 38 | . . . . . 4 4 . 1 . 1 6 1 8 4 1 . 1 1 5 1 Storage 13 | 1 3 1 1 . 3 . . . . . . 1 . . 1 1 . . 1 . Processor 13 | . . . . . 4 . . 1 . . 2 . . 4 . . . . . 2 Hackware 26 | . . . . . . . . 3 1 3 1 . 1 2 3 1 4 1 4 2 Protection 19 | . . . . . 2 . 2 2 1 . 2 . 2 3 1 . 2 . 2 . Artifact . | . . . . . . . . . . . . . . . . . . . . . Weapon 133 | 2 5 1 . . 15 1 5 14 1 . 21 . 19 7 8 1 11 . 12 10 Energy Gun 27 | 2 1 . . . 6 . . 1 . . 6 . 3 . . . . . 4 4 Energy Cannon 32 | . . . . . 3 1 5 6 . . 5 . 7 . . 1 2 . 2 . Ballistic Gun 32 | . 2 1 . . 2 . . . . . 2 . 6 6 3 . 6 . 2 2 Ballistic Cannon 1 | . . . . . . . . 1 . . . . . . . . . . . . Launcher 12 | . 2 . . . 1 . . 2 . . 1 . 3 . 2 . . . . 1 Special Weapon 16 | . . . . . . . . 3 1 . . . . 1 3 . 3 . 3 2 Impact Weapon 3 | . . . . . 2 . . 1 . . . . . . . . . . . . Slashing Weapon 10 | . . . . . 1 . . . . . 7 . . . . . . . 1 1 Piercing Weapon . | . . . . . . . . . . . . . . . . . . . . . Special Melee Weapon . | . . . . . . . . . . . . . . . . . . . . . Unidentified Prototypes 4 | . . . . . . . . . . . . 1 1 1 . . . 1 . . Parts Lost 83 | . 2 2 . . 14 . . 7 1 9 1 . 20 9 3 . 1 . 3 11 Power 15 | . . 1 . . 1 . . 2 1 2 1 . 3 . . . 1 . 1 2 Propulsion 16 | . 1 1 . . 3 . . . . 2 . . 4 4 . . . . . 1 Utility 24 | . . . . . 1 . . 1 . 3 . . 8 3 2 . . . 1 5 Weapon 28 | . 1 . . . 9 . . 4 . 2 . . 5 2 1 . . . 1 3 Highest Loss Streak 17 | . 2 1 . . 13 . . 2 1 7 1 . 17 5 2 . 1 . 1 6 Average Slot Usage (%) 91 | . 97 96 100 100 90 90 91 91 90 70 91 93 86 95 97 96 96 93 88 77 Engine 5 | . 14 13 14 14 3 9 15 8 4 1 12 11 8 2 . . . . . . Core 1 | . . . . . 4 . . 5 6 4 . . 1 1 . . . . . . Reactor 3 | . . . . . . . . . . . . . . 5 10 9 7 8 7 7 Treads 1 | . . . . . 1 . . . . . . . 1 3 1 . . . 2 7 Leg 4 | . . . . . . . . . . . . . 1 8 17 19 19 17 10 . Wheel 6 | . 27 25 28 28 11 9 7 7 6 5 5 11 8 7 1 . . . . . Device 10 | . . . . . 7 9 7 7 6 4 13 16 15 23 13 14 7 8 12 11 Storage 19 | . 26 28 28 28 19 27 23 23 20 20 20 17 17 15 17 20 19 17 18 18 Processor 6 | . . . . . 18 18 15 4 . . 7 5 3 3 5 4 3 . . 3 Hackware 9 | . . . . . . . . 9 20 17 6 5 5 5 13 19 23 28 22 19 Protection 5 | . . . . . 6 . 6 7 13 5 9 11 6 4 4 . 3 4 3 1 Energy Gun 2 | . 20 . . . 8 . . . . . 2 . 2 . . . . . 2 3 Energy Cannon 4 | . . . . . 6 18 14 11 6 4 6 11 4 . . . 1 . . . Ballistic Gun 3 | . 6 28 28 28 2 . . . . . 1 . 3 9 6 3 4 4 1 . Special Weapon 1 | . . . . . . . . . 3 4 . . . . 3 4 2 4 2 2 Naked Turns 55 | . . . . . . . . . . . . . . . . . . . . 55 Heaviest Build 212 | 13 57 73 70 70 120 120 133 134 129 131 143 144 144 161 176 178 192 192 212 212 Greatest Support 135 | 20 26 32 32 32 43 28 28 28 28 28 50 38 60 60 95 98 98 108 120 135 Greatest Overweight (x) 10 | . 2 4 2 2 5 4 4 4 4 4 5 3 5 10 9 1 1 1 3 2 Average Overweight (x) 2 | . 1 2 2 2 2 4 4 4 4 3 4 3 3 5 2 1 1 1 1 . Largest Inventory Capacity 42 | 6 18 20 20 20 28 28 28 28 28 28 28 28 28 28 36 36 36 36 42 42 Average Capacity 28 | 4 15 19 20 20 20 28 28 28 28 28 28 28 28 28 31 36 36 36 37 39 Most Carried 42 | 2 11 14 15 16 24 28 28 28 26 28 28 27 28 28 36 36 36 36 42 42 Average Carried 26 | 1 7 12 13 15 17 26 25 26 25 26 26 26 26 26 29 35 35 35 36 37 Final Capacity 42 | 6 18 20 20 20 28 28 28 28 28 28 28 28 28 28 36 36 36 36 42 4 Final Carried 42 | 2 11 13 15 16 23 26 28 27 26 23 28 27 28 28 36 36 36 36 42 4 Class Distribution -------------------- 43% | Hauler-Mutant 33% | Botlord-Mutant 11% | Bothacker-Mutant 3% | Mutant 3% | Scavenger-Mutant 3% | Scavenger-Skirmisher Dominant Class ---------------- Mutant | -10/Materials Hauler-Mutant | -10/Mines Hauler-Mutant | -10/Exiles Hauler-Mutant | -9/Mines Hauler-Mutant | -8/Materials Hauler-Mutant | -8/Garrison Hauler-Mutant | -7/Factory Bothacker-Mutant | -7/Garrison Bothacker-Mutant | -6/Factory Bothacker-Mutant | -6/Garrison Hauler-Mutant | -6/Factory Hauler-Mutant | -5/Factory Hauler-Mutant | -5/Garrison Scavenger-Skirmisher | -4/Factory Botlord-Mutant | -4/Garrison Botlord-Mutant | -3/Research Botlord-Mutant | -3/Garrison Botlord-Mutant | -2/Research Botlord-Mutant | -2/Garrison Botlord-Mutant | -1/Access Resources | -11 -10 -10 -10 -9 -8 -8 -7 -7 -6 -6 -6 -5 -5 -4 -4 -3 -3 -2 -2 -1 ----------- Run | Scr Mat Min Exi Min Mat Gar Fac Gar Fac Gar Fac Fac Gar Fac Gar Res Gar Res Gar Acc Matter Collected 6840 | 199 198 234 20 20 393 115 200 384 . 106 585 221 566 870 549 . 706 105 777 592 Remotely . | . . . . . . . . . . . . . . . . . . . . . Salvage Created 9928 | . 335 406 . . 1722 557 50 701 . 23 1404 71 952 1043 476 . 391 94 833 870 Parts 423 | . 16 16 . . 90 27 6 30 . 1 49 . 31 51 25 . 22 2 20 37 Haulers Intercepted 7 | . . . . . 4 . . . . . 3 . . . . . . . . . Recyclers Shooed 13 | . 1 3 . . 3 . . . . . 3 . . 1 . . . . . 2 Parts Field Recycled . | . . . . . . . . . . . . . . . . . . . . . Retrieved Matter . | . . . . . . . . . . . . . . . . . . . . . Parts Self-Destructed . | . . . . . . . . . . . . . . . . . . . . . Prevented . | . . . . . . . . . . . . . . . . . . . . . Kills | -11 -10 -10 -10 -9 -8 -8 -7 -7 -6 -6 -6 -5 -5 -4 -4 -3 -3 -2 -2 -1 ------- Run | Scr Mat Min Exi Min Mat Gar Fac Gar Fac Gar Fac Fac Gar Fac Gar Res Gar Res Gar Acc Combat Hostiles Destroyed 157 | . 12 7 . . 24 12 1 19 . 1 14 1 17 9 12 . 6 1 10 11 Guns 69 | . 7 7 . . 10 . . . . . 2 . 7 8 8 . 4 1 6 9 Cannons 52 | . . . . . 13 9 1 9 . 1 9 1 3 . . . 2 . 4 . AOE 23 | . 5 . . . 1 . . 8 . . 2 . 3 . 4 . . . . . Classes Destroyed 16 | . 4 . . . 6 . 1 2 . . 1 . 1 . 1 . . . . . Worker 4 | . . . . . 3 . . . . . . . . . . . . . . 1 Builder 3 | . . . . . 2 . . . . . . . . 1 . . . . . . Tunneler 3 | . . . . . . . . . . . 1 . . 2 . . . . . . Hauler 7 | . . . . . 4 . . . . . 3 . . . . . . . . . Recycler 12 | . 1 2 . . 3 . . . . . 3 . . 2 . . . . . 1 Watcher 4 | . 1 . . . 3 . . . . . . . . . . . . . . . Swarmer 42 | . 6 3 . . 3 3 . 7 . 1 2 . 3 . 8 . 3 . 1 2 Grunt 66 | . 6 4 . . 12 9 . 8 . . 3 . 8 1 3 . 4 1 7 . Duelist 3 | . . . . . 1 . . 1 . . . . 1 . . . . . . . Protector 1 | . . . . . . . . 1 . . . . . . . . . . . . Sentry 16 | . . . . . 6 . . 1 . . 3 1 1 3 . . . . 1 . Demolisher 1 | . . . . . . . . 1 . . . . . . . . . . . . Specialist 1 | . . . . . . . . . . . . . . . 1 . . . . . Hunter 12 | . . . . . 2 . . . . . 1 . 1 2 . . . . . 6 Programmer 17 | . . . . . . . 1 . . . 5 . 2 4 2 . . . . 3 Behemoth 2 | . . . . . . . . . . . . . 1 . . . . . 1 . Best Kill Streak 6 | . 6 5 . . 5 3 1 6 . 1 4 1 3 4 4 . 3 1 3 4 Combat Bots Only 6 | . 5 4 . . 3 3 1 6 . 1 2 1 3 2 4 . 3 1 3 3 Max Kills in Single Turn 3 | . 3 1 . . 1 1 1 3 . 1 2 1 3 1 2 . 2 1 1 1 Gunslinging . | . . . . . . . . . . . . . . . . . . . . . Exploded 3 | . 2 . . . 1 . . 2 . . 2 . 3 . 2 . . . . . Melee . | . . . . . . . . . . . . . . . . . . . . . Uniques/NPCs Destroyed . | . . . . . . . . . . . . . . . . . . . . . Combat | -11 -10 -10 -10 -9 -8 -8 -7 -7 -6 -6 -6 -5 -5 -4 -4 -3 -3 -2 -2 -1 -------- Run | Scr Mat Min Exi Min Mat Gar Fac Gar Fac Gar Fac Fac Gar Fac Gar Res Gar Res Gar Acc Damage Taken 18011 | . 320 376 . . 1699 397 59 1131 71 1739 655 181 2302 1430 767 . 611 94 1760 4419 Core 3763 | . 51 48 . . 343 37 15 96 . 566 68 43 378 129 47 . 115 48 169 1610 Absorbed by Shields 430 | . . . . . . . . 35 . 83 . . 32 42 192 . . . 46 . Core Remaining (%) 68 | 100 . . . 60 . 30 . 84 . . 25 . 57 . 84 . 91 . 85 . Volleys Fired 824 | . 28 28 . . 107 26 2 59 1 23 64 4 82 69 45 4 46 7 105 124 Largest 2 | . 2 2 . . 2 2 2 2 1 1 2 2 2 2 2 1 2 1 2 1 Hottest 207 | . 100 40 . . 134 138 138 145 30 65 170 170 170 114 66 50 146 50 207 94 Shots Fired 1242 | . 46 56 . . 178 44 4 84 1 23 122 8 145 134 68 4 63 7 132 123 Gun 737 | . 40 56 . . 112 . . 3 . . 57 . 90 134 53 . 32 6 73 81 Cannon 356 | . . . . . 65 44 4 68 . 4 64 8 52 . . . 12 . 35 . Launcher 27 | . 6 . . . 1 . . 9 . . 1 . 3 . 5 . . . . 2 Special 122 | . . . . . . . . 4 1 19 . . . . 10 4 19 1 24 40 Kinetic 417 | . 6 56 . . 39 . . 3 . . 26 . 47 119 53 . 32 6 28 2 Thermal 475 | . 34 . . . 75 . 1 23 . 4 92 8 52 15 . . 12 . 80 79 Explosive 25 | . 6 . . . 1 . . 9 . . 1 . 3 . 5 . . . . . Electromagnetic 203 | . . . . . 63 44 3 45 . . 3 . 43 . . . . . . 2 Robot Hit Streak 36 | . 7 12 . . 19 21 6 17 1 4 36 7 36 10 8 7 16 8 14 15 Robot Miss Streak 6 | . 2 2 . . 6 1 . 3 . 4 2 . 2 3 4 . 3 . 3 3 Penetration Max 1 | . . . . . . . . . . . . . . 1 1 . 1 . . . Secondary Targets 7 | . 1 2 . . 1 . . . . . . . 1 . . . 1 . 1 . Max Gunslinging Chain 1 | . 1 1 . . 1 . . . . . . . 1 . . . 1 . 1 . Capacitor 116 | . . . . . . . . . . . . . . . . . . . 37 79 Shots Hit Robots 878 | . 28 37 . . 153 31 4 55 1 11 95 7 106 90 36 4 36 7 87 90 Core Hits 403 | . 21 16 . . 112 14 2 35 . 1 36 3 32 32 30 . 8 3 26 32 Critical Hits 32 | . . 1 . . . 1 . . . . 4 1 6 9 6 . 4 . . . Critical Kills 11 | . . 1 . . . . . . . . 1 . 2 3 1 . 3 . . . Critical Parts Destroyed 19 | . . . . . . . . . . . 2 1 4 6 5 . 1 . . . Melee Attacks 22 | . . . . . 3 . . 1 . . 17 . . . . . . . . 1 Impact 4 | . . . . . 3 . . 1 . . . . . . . . . . . . Slashing 18 | . . . . . . . . . . . 17 . . . . . . . . 1 Piercing . | . . . . . . . . . . . . . . . . . . . . . Sneak Attacks 2 | . . . . . . . . . . . 2 . . . . . . . . . Combat Hostiles . | . . . . . . . . . . . . . . . . . . . . . Follow-up Attacks . | . . . . . . . . . . . . . . . . . . . . . Damage Inflicted 22658 | . 846 472 . . 2717 981 50 2262 . 114 2884 197 2888 2332 1365 . 612 149 2201 2588 Guns 12523 | . 322 472 . . 1377 . . 53 . . 1166 . 1802 2332 685 . 337 149 1483 2345 Cannons 6800 | . . . . . 1047 928 50 1305 . 26 1320 197 934 . . . 275 . 718 . Explosions 2990 | . 524 . . . 290 53 . 904 . . 151 . 152 . 680 . . . . 236 Melee 247 | . . . . . . . . . . . 247 . . . . . . . . . Ramming 98 | . . . . . 3 . . . . 88 . . . . . . . . . 7 Kinetic 6123 | . 50 472 . . 419 . . 47 . . 432 . 976 2027 685 . 337 149 503 26 Thermal 9824 | . 392 . . . 1025 53 33 564 . 26 2003 197 934 305 . . 275 . 1698 2319 Explosive 2227 | . 404 . . . 177 . . 663 . . 151 . 152 . 680 . . . . . Electromagnetic 4139 | . . . . . 1093 928 17 988 . . 51 . 826 . . . . . . 236 Impact . | . . . . . . . . . . . . . . . . . . . . . Slashing 247 | . . . . . . . . . . . 247 . . . . . . . . . Piercing . | . . . . . . . . . . . . . . . . . . . . . Highest Corruption 11 | . . . . . . . . . . 2 2 . . 6 8 . . . . 11 Average Corruption 4 | . . . . . . . . . . 1 2 . . 3 7 . . . . 5 Corruption Purged . | . . . . . . . . . . . . . . . . . . . . . Effects 67 | . . . . . . . . . . . 13 . . 9 33 . . . . 12 Message Errors 18 | . . . . . . . . . . . 2 . . 5 8 . . . . 3 Matter Fused 16 | . . . . . . . . . . . . . . 1 11 . . . . 4 Heat Flow Errors 8 | . . . . . . . . . . . 4 . . 1 2 . . . . 1 Energy Discharges 7 | . . . . . . . . . . . 3 . . . 4 . . . . . Parts Rejected 2 | . . . . . . . . . . . . . . . . . . . . 2 Data Loss (minor) 6 | . . . . . . . . . . . 2 . . 2 2 . . . . . Data Loss (major) 1 | . . . . . . . . . . . . . . . 1 . . . . . Misfires 1 | . . . . . . . . . . . . . . . 1 . . . . . Targeting Errors 8 | . . . . . . . . . . . 2 . . . 4 . . . . 2 Overload Shots 14 | . . . . . . . . . . . . . . . . . . . . 14 Effects 3 | . . . . . . . . . . . . . . . . . . . . 3 Short Circuit 1 | . . . . . . . . . . . . . . . . . . . . 1 Meltdown 2 | . . . . . . . . . . . . . . . . . . . . 2 Overflow Damage 350 | . 9 . . . 22 26 . 89 . . 99 . 18 . 51 . 21 . 15 . Projectiles 217 | . . . . . 22 18 . 26 . . 99 . 16 . . . 21 . 15 . Explosions 133 | . 9 . . . . 8 . 63 . . . . 2 . 51 . . . . . Melee . | . . . . . . . . . . . . . . . . . . . . . Knockbacks 1 | . . . . . . . . . . 1 . . . . . . . . . . Impact 1 | . . . . . . . . . . 1 . . . . . . . . . . Kinetic . | . . . . . . . . . . . . . . . . . . . . . Secondary . | . . . . . . . . . . . . . . . . . . . . . Self-Inflicted Damage 321 | . 10 . . . 59 46 . 35 . 43 . . 6 . 75 . . . . 47 Shots 12 | . 1 . . . 2 1 . 1 . . . . 1 . 2 . . . . 4 Rammed 7 | . . . . . 1 . . . . 5 . . . . . . . . . 1 Targets Rammed 7 | . . . . . 1 . . . . 5 . . . . . . . . . 1 Kicked . | . . . . . . . . . . . . . . . . . . . . . Crushed . | . . . . . . . . . . . . . . . . . . . . . Highest Temperature 358 | . 295 6 . . 99 99 27 246 . 41 204 . 117 345 245 . 145 . 358 20 Average Temperature 62 | . 91 2 . . 25 38 16 80 . 20 42 . 45 105 107 . 49 . 93 3 Received Heat Transfer 3295 | . 126 150 . . 738 144 . 402 18 318 129 63 522 94 42 . 57 . 393 99 Effects 9 | . 2 . . . . . . . . . . . . 6 . . . . 1 . Energy Bleed 1 | . 1 . . . . . . . . . . . . . . . . . . . Interference 6 | . 1 . . . . . . . . . . . . 5 . . . . . . Matter Decay 2 | . . . . . . . . . . . . . . 1 . . . . 1 . Siege Activations 1 | . . . . . . . . . . . . . . . . . . . 1 . Total Turns 4 | . . . . . . . . . . . . . . . . . . . 4 . Longest Duration 4 | . . . . . . . . . . . . . . . . . . . 4 . Robots Corrupted 8 | . . . . . . 3 . 2 . . . . 3 . . . . . . . Combat Hostiles 8 | . . . . . . 3 . 2 . . . . 3 . . . . . . . Parts Fried 34 | . . . . . 10 7 . 9 . . . . 8 . . . . . . . Impact Corruptions . | . . . . . . . . . . . . . . . . . . . . . Robots Melted 6 | . . . . . . . . . . . 2 . 1 1 . . . . . 2 Combat Hostiles 5 | . . . . . . . . . . . 1 . 1 1 . . . . . 2 Parts Melted 34 | . 2 . . . 3 . . . . . 10 2 1 4 . . . . 3 9 Heat Transferred 14028 | . 964 . . . 1705 50 37 745 . 37 3377 350 1449 481 . . 259 . 1776 2798 Parts Sabotaged . | . . . . . . . . . . . . . . . . . . . . . Parts Stolen . | . . . . . . . . . . . . . . . . . . . . . Parts Stripped . | . . . . . . . . . . . . . . . . . . . . . Power Chain Reactions 5 | . . . . . 1 1 . 3 . . . . . . . . . . . . Missiles Intercepted . | . . . . . . . . . . . . . . . . . . . . . Alert | -11 -10 -10 -10 -9 -8 -8 -7 -7 -6 -6 -6 -5 -5 -4 -4 -3 -3 -2 -2 -1 ------- Run | Scr Mat Min Exi Min Mat Gar Fac Gar Fac Gar Fac Fac Gar Fac Gar Res Gar Res Gar Acc Peak Influence 1158 | . 416 337 . . 425 737 430 1158 626 631 276 174 572 348 854 480 1140 676 1051 645 Initial 641 | . . 162 . . . 276 386 301 607 438 218 127 121 270 138 480 360 641 507 630 Average 430 | . 211 256 . . 158 505 394 794 617 490 164 140 410 263 527 480 870 646 813 180 Maximum Alert Level 4 | . 2 1 . . 2 3 2 4 2 2 1 . 2 1 3 2 4 2 3 2 Low Security (%) 30 | 100 36 2 . 100 65 . . . . . 65 100 4 26 13 . . . . 78 Level 1 23 | . 48 97 . . 29 22 66 8 . . 34 . 33 73 15 . 6 . . 9 Level 2 23 | . 15 . . . 4 61 33 14 100 100 . . 61 . 31 100 21 100 33 11 Level 3 21 | . . . . . . 16 . 71 . . . . . . 39 . 65 . 66 . Level 4 . | . . . . . . . . 5 . . . . . . . . 6 . . . Level 5 . | . . . . . . . . . . . . . . . . . . . . . High Security . | . . . . . . . . . . . . . . . . . . . . . Max Security . | . . . . . . . . . . . . . . . . . . . . . Squads Dispatched 34 | . 3 . . . 5 . 1 . . . 8 1 . 6 . . . 1 . 9 Investigation 3 | . . . . . 1 . . . . . 1 . . . . . . . . 1 Extermination 11 | . . . . . . . 1 . . . 4 . . 3 . . . 1 . 2 Reinforcement 15 | . 3 . . . 4 . . . . . 3 . . . . . . . . 5 Assault . | . . . . . . . . . . . . . . . . . . . . . Garrison 5 | . . . . . . . . . . . . 1 . 3 . . . . . 1 Intercept . | . . . . . . . . . . . . . . . . . . . . . Construction Impeded 3 | . . . . . . . . . . . . . . . . . . . . 3 Haulers Reinforced 2 | . . . . . . . . . . . 1 . . . . . . . . 1 Alert ID Control Effect 16 | . . . . . . . . . . . . . . . . . . . 8 8 Stealth | -11 -10 -10 -10 -9 -8 -8 -7 -7 -6 -6 -6 -5 -5 -4 -4 -3 -3 -2 -2 -1 --------- Run | Scr Mat Min Exi Min Mat Gar Fac Gar Fac Gar Fac Fac Gar Fac Gar Res Gar Res Gar Acc Distress Signals 7 | . . . . . 3 . . 1 . . . . . 1 . . . . . 2 Communications Jammed 42 | . . . . . . . . . . . . . . . . . . . . 42 Distress Signals 42 | . . . . . . . . . . . . . . . . . . . . 42 Times Spotted 365 | . 21 7 . . 44 14 1 50 1 21 22 2 20 12 30 . 32 1 34 53 Peak Tracking Total 17 | . 7 4 . . 4 3 1 6 1 11 3 1 4 2 5 . 5 1 4 17 Tactical Retreats 37 | . . . . . 5 2 . 17 . . 1 . 2 1 3 . 1 . 3 2 Traps | -11 -10 -10 -10 -9 -8 -8 -7 -7 -6 -6 -6 -5 -5 -4 -4 -3 -3 -2 -2 -1 ------- Run | Scr Mat Min Exi Min Mat Gar Fac Gar Fac Gar Fac Fac Gar Fac Gar Res Gar Res Gar Acc Traps Triggered 49 | . . . . . 1 1 . 6 . 4 . . 7 . 7 . 5 1 17 . Indirectly . | . . . . . . . . . . . . . . . . . . . . . Trap Hack Attempts . | . . . . . . . . . . . . . . . . . . . . . Triggered . | . . . . . . . . . . . . . . . . . . . . . Disarmed 4 | . . . . . 4 . . . . . . . . . . . . . . . Reprogrammed . | . . . . . . . . . . . . . . . . . . . . . Reused . | . . . . . . . . . . . . . . . . . . . . . Traps Extracted . | . . . . . . . . . . . . . . . . . . . . . Installed . | . . . . . . . . . . . . . . . . . . . . . Triggered 1 | . . . . . . . . . . . . . . . . . . . . 1 Power Sources Rigged 3 | . . . . . 1 1 . . . . . . 1 . . . . . . . Exploded 2 | . . . . . 1 . . . . . . . 1 . . . . . . . Machines | -11 -10 -10 -10 -9 -8 -8 -7 -7 -6 -6 -6 -5 -5 -4 -4 -3 -3 -2 -2 -1 ---------- Run | Scr Mat Min Exi Min Mat Gar Fac Gar Fac Gar Fac Fac Gar Fac Gar Res Gar Res Gar Acc Machines Disabled 32 | . 3 . . . 5 1 . 4 . 1 . . 3 1 4 . 2 . 6 2 Max in Single Turn 3 | . 3 . . . 2 1 . 1 . 1 . . 1 1 1 . 1 . 2 1 Garrison Relay 18 | . . . . . . 1 . 3 . 1 . . 2 . 4 . 3 . 4 . Phase Generator 1 | . . . . . . . . . . . . . . . . . . . 1 . Machines Sabotaged . | . . . . . . . . . . . . . . . . . . . . . Garrisons Compromised . | . . . . . . . . . . . . . . . . . . . . . Overloaded Fab Kills . | . . . . . . . . . . . . . . . . . . . . . Fab Network Shutdowns . | . . . . . . . . . . . . . . . . . . . . . Hacking | -11 -10 -10 -10 -9 -8 -8 -7 -7 -6 -6 -6 -5 -5 -4 -4 -3 -3 -2 -2 -1 --------- Run | Scr Mat Min Exi Min Mat Gar Fac Gar Fac Gar Fac Fac Gar Fac Gar Res Gar Res Gar Acc Machines Accessed 27 | . 3 . 1 . 4 . 2 . 2 . 9 1 . 3 . 1 . 1 . . Terminals 12 | . 3 . . . 3 . . . . . 5 . . 1 . . . . . . Fabricators 2 | . . . . . . . . . 1 . . . . 1 . . . . . . Repair Stations 3 | . . . . . . . 1 . . . 2 . . . . . . . . . Recycling Units . | . . . . . . . . . . . . . . . . . . . . . Scanalyzers 2 | . . . . . . . . . . . 2 . . . . . . . . . Garrison Access 7 | . . . . . 1 . 1 . 1 . . 1 . 1 . 1 . 1 . . Total Hacks 55 | . 5 . 1 . 10 . 3 . 4 . 24 1 . 5 . 1 . 1 . . Successful 31 | . 1 . 1 . 7 . 3 . 2 . 13 1 . 1 . 1 . 1 . . Failed 24 | . 4 . . . 3 . . . 2 . 11 . . 4 . . . . . . Catastrophic 4 | . 1 . . . . . . . . . 2 . . 1 . . . . . . Database Lockouts . | . . . . . . . . . . . . . . . . . . . . . Manual 17 | . 4 . 1 . 7 . . . . . 3 . . 2 . . . . . . Terminals 31 | . 5 . . . 9 . . . . . 15 . . 2 . . . . . . Fabricators 5 | . . . . . . . . . 3 . . . . 2 . . . . . . Repair Stations 5 | . . . . . . . 2 . . . 3 . . . . . . . . . Recycling Units . | . . . . . . . . . . . . . . . . . . . . . Scanalyzers 6 | . . . . . . . . . . . 6 . . . . . . . . . Garrison Access 7 | . . . . . 1 . 1 . 1 . . 1 . 1 . 1 . 1 . . Terminal Hacks 14 | . 1 . 1 . 4 . . . . . 8 . . . . . . . . . Prototype ID Bank 2 | . . . . . . . . . . . 2 . . . . . . . . . Open Door 1 | . . . . . . . . . . . 1 . . . . . . . . . Branch Access Points 2 | . . . . . 1 . . . . . 1 . . . . . . . . . Terminal Index 1 | . . . . . . . . . . . 1 . . . . . . . . . Locate Traps 1 | . . . . . . . . . . . 1 . . . . . . . . . Disarm Traps 1 | . . . . . 1 . . . . . . . . . . . . . . . Hauler Manifests 1 | . . . . . . . . . . . 1 . . . . . . . . . Zone Layout 4 | . 1 . . . 2 . . . . . 1 . . . . . . . . . EX-Prototype ID Bank 1 | . . . 1 . . . . . . . . . . . . . . . . . Fabricator Hacks 1 | . . . . . . . . . 1 . . . . . . . . . . . Build 1 | . . . . . . . . . 1 . . . . . . . . . . . Repair Station Hacks 4 | . . . . . . . 2 . . . 2 . . . . . . . . . Scan Component 2 | . . . . . . . 1 . . . 1 . . . . . . . . . Repair 2 | . . . . . . . 1 . . . 1 . . . . . . . . . Recycling Unit Hacks . | . . . . . . . . . . . . . . . . . . . . . Scanalyzer 1 | . . . . . . . . . . . 1 . . . . . . . . . Insert Component 1 | . . . . . . . . . . . 1 . . . . . . . . . Garrison Access Hacks 7 | . . . . . 1 . 1 . 1 . . 1 . 1 . 1 . 1 . . Unlock Access 7 | . . . . . 1 . 1 . 1 . . 1 . 1 . 1 . 1 . . Unauthorized Hacks 4 | . . . . . 2 . . . . . 2 . . . . . . . . . Terminals 4 | . . . . . 2 . . . . . 2 . . . . . . . . . Botnet 2 | . . . . . 1 . . . . . 1 . . . . . . . . . Detonate 1 | . . . . . 1 . . . . . . . . . . . . . . . Operators 1 | . . . . . . . . . . . 1 . . . . . . . . . Fabricators . | . . . . . . . . . . . . . . . . . . . . . Repair Stations . | . . . . . . . . . . . . . . . . . . . . . Recycling Units . | . . . . . . . . . . . . . . . . . . . . . Scanalyzers . | . . . . . . . . . . . . . . . . . . . . . Garrison Access . | . . . . . . . . . . . . . . . . . . . . . Data Cores Recovered . | . . . . . . . . . . . . . . . . . . . . . Used . | . . . . . . . . . . . . . . . . . . . . . Hacking Detections 22 | . 3 . . . 3 . 1 . 2 . 9 . . 3 . 1 . . . . Full Trace Events 1 | . . . . . . . . . . . 1 . . . . . . . . . Feedback Events . | . . . . . . . . . . . . . . . . . . . . . Feedback Blocked . | . . . . . . . . . . . . . . . . . . . . . Robot Schematics Acquired . | . . . . . . . . . . . . . . . . . . . . . Robots Built . | . . . . . . . . . . . . . . . . . . . . . Matter . | . . . . . . . . . . . . . . . . . . . . . Time . | . . . . . . . . . . . . . . . . . . . . . Total Robot Build Rating . | . . . . . . . . . . . . . . . . . . . . . Part Schematics Acquired . | . . . . . . . . . . . . . . . . . . . . . Parts Built 2 | . . . . . . . . . 2 . . . . . . . . . . . Matter 234 | . . . . . . . . . 234 . . . . . . . . . . . Time 58 | . . . . . . . . . 58 . . . . . . . . . . . Total Part Build Rating 14 | . . . . . . . . . 14 . . . . . . . . . . . Parts Repaired 2 | . . . . . . . 1 . . . 1 . . . . . . . . . Time 66 | . . . . . . . 22 . . . 44 . . . . . . . . . Parts Recycled . | . . . . . . . . . . . . . . . . . . . . . Recycled Matter . | . . . . . . . . . . . . . . . . . . . . . Retrieved Matter . | . . . . . . . . . . . . . . . . . . . . . Retrieved Components . | . . . . . . . . . . . . . . . . . . . . . Parts Scanalyzed 1 | . . . . . . . . . . . 1 . . . . . . . . . Part Schematics Acquired . | . . . . . . . . . . . . . . . . . . . . . Parts Damaged . | . . . . . . . . . . . . . . . . . . . . . Bothacking | -11 -10 -10 -10 -9 -8 -8 -7 -7 -6 -6 -6 -5 -5 -4 -4 -3 -3 -2 -2 -1 ------------ Run | Scr Mat Min Exi Min Mat Gar Fac Gar Fac Gar Fac Fac Gar Fac Gar Res Gar Res Gar Acc Used RIF Installer 7 | . . . . . . 1 . 1 . 1 . . 1 . 1 . 1 . 1 . Hotswap 1 | . . . . . . . . . . 1 . . . . . . . . . . Command Fork 1 | . . . . . . . . . . . . . . . . . . . 1 . Signal Jammer 1 | . . . . . . . . 1 . . . . . . . . . . . . Robot Detection 1 | . . . . . . . . . . . . . . . 1 . . . . . Alert ID Control 1 | . . . . . . . . . . . . . . . . . 1 . . . Autooverride 1 | . . . . . . . . . . . . . 1 . . . . . . . Robots Hacked 88 | . . . . . . . . 2 1 12 . . . 1 9 2 15 2 20 24 Non-combat 12 | . . . . . . . . . . . . . . . . 2 . . . 10 Combat 76 | . . . . . . . . 2 1 12 . . . 1 9 . 15 2 20 14 Autooverrided 11 | . . . . . . . . . . . . . . 1 1 . . 1 3 5 Robot Hacks Applied 92 | . . . . . . . . 3 1 13 . . . . 8 3 17 1 18 28 parse_system 3 | . . . . . . . . . . . . . . . . 1 1 . . 1 map_walls 3 | . . . . . . . . . . . . . . . . . . . . 3 map_earth 2 | . . . . . . . . . . . . . . . . 1 . . . 1 drop_inventory 3 | . . . . . . . . . . . . . . . . 1 . . . 2 purge_threat 3 | . . . . . . . . . . . . . . . . . . . . 3 reprogram_traps 1 | . . . . . . . . . . . . . . . . . . . . 1 block_reporting 1 | . . . . . . . . . . . . . . . . . . . . 1 recall_investigation 1 | . . . . . . . . . . . . . . . . . . . . 1 map_route 2 | . . . . . . . . . . . . . . . . . . . . 2 relay_feed 1 | . . . . . . . . . . . . . . . . . . . . 1 find_shortcuts 2 | . . . . . . . . . . . . . . . . . 1 . . 1 link_fov 1 | . . . . . . . . . . . . . . . . . . . . 1 reboot_propulsion 1 | . . . . . . . . . . 1 . . . . . . . . . . scatter_targeting 3 | . . . . . . . . . . . . . . . . . 1 . 1 1 link_complan 1 | . . . . . . . . . . . . . . . . . 1 . . . broadcast_data 1 | . . . . . . . . . . 1 . . . . . . . . . . disrupt_area 4 | . . . . . . . . 1 . 1 . . . . 1 . 1 . . . spike_heat 1 | . . . . . . . . . . . . . . . . . 1 . . . overload_power 4 | . . . . . . . . 1 . 2 . . . . . . . . 1 . wipe_record 3 | . . . . . . . . . . . . . . . . . . . 3 . go_dormant 2 | . . . . . . . . . . 2 . . . . . . . . . . overwrite_iff 10 | . . . . . . . . . . 1 . . . . . . . . 4 5 formatsys_high 39 | . . . . . . . . 1 1 5 . . . . 7 . 11 1 9 4 Relay Couplers Released 75 | . . . . . . 5 . 13 . 4 . . 6 3 15 . 13 . 16 . Machine Destruction 72 | . . . . . . 5 . 13 . 4 . . 6 . 15 . 13 . 16 . Programmers 3 | . . . . . . . . . . . . . . 3 . . . . . . Attached 25 | . . . . . . . . 3 1 3 1 . 1 2 3 1 4 . 4 2 Robots Rewired 1 | . . . . . . 1 . . . . . . . . . . . . . . Allies Hacked . | . . . . . . . . . . . . . . . . . . . . . Hacks Repelled . | . . . . . . . . . . . . . . . . . . . . . Allies | -11 -10 -10 -10 -9 -8 -8 -7 -7 -6 -6 -6 -5 -5 -4 -4 -3 -3 -2 -2 -1 -------- Run | Scr Mat Min Exi Min Mat Gar Fac Gar Fac Gar Fac Fac Gar Fac Gar Res Gar Res Gar Acc Total Allies 62 | . . . . . . 1 . 1 1 6 . . . 1 8 . 11 2 16 15 Largest Group 7 | . . . . . . 1 . 1 1 3 . . . 1 4 4 6 7 4 4 Highest-Rated Group 379 | . . . . . . 16 . 16 32 81 . . . 49 182 182 344 379 196 128 Highest-Rated Ally 69 | . . . . . . 16 . 16 32 41 . . . 49 56 49 64 64 69 69 Total Orders . | . . . . . . . . . . . . . . . . . . . . . Ally Attacks 269 | . . . . . . 6 . 7 . 22 . . . 1 18 . 104 5 57 49 Total Damage 8280 | . . . . . . 95 . 46 . 535 . . . 35 608 . 3636 185 1965 1175 Kills 47 | . . . . . . 1 . . . 4 . . . . 6 . 19 1 8 8 Allies Corrupted 4 | . . . . . . . . . . . . . . . . . . 4 . . Allies Melted . | . . . . . . . . . . . . . . . . . . . . . Intel | -11 -10 -10 -10 -9 -8 -8 -7 -7 -6 -6 -6 -5 -5 -4 -4 -3 -3 -2 -2 -1 ------- Run | Scr Mat Min Exi Min Mat Gar Fac Gar Fac Gar Fac Fac Gar Fac Gar Res Gar Res Gar Acc Robot Analysis Total . | . . . . . . . . . . . . . . . . . . . . . Derelict Logs Recovered . | . . . . . . . . . . . . . . . . . . . . . Drone Launches . | . . . . . . . . . . . . . . . . . . . . . Drone Recoveries . | . . . . . . . . . . . . . . . . . . . . . Exploration | -11 -10 -10 -10 -9 -8 -8 -7 -7 -6 -6 -6 -5 -5 -4 -4 -3 -3 -2 -2 -1 ------------- Run | Scr Mat Min Exi Min Mat Gar Fac Gar Fac Gar Fac Fac Gar Fac Gar Res Gar Res Gar Acc Turns Passed 14526 | 63 353 278 369 112 1959 464 309 1324 132 276 2125 213 833 843 1041 160 840 263 1702 867 Spaces Moved 7669 | 66 240 146 305 92 975 240 192 775 83 131 1086 142 322 381 554 99 465 163 818 394 Core 113 | 2 . . . . . . . . . . . . . . . . . . . 111 Treads 630 | . . . . . 6 . . . . . 18 . 14 15 . . . . 294 283 Legs 1747 | . . . . . 49 . . . . . . . 4 13 430 99 465 163 524 . Wheels 5179 | 64 240 146 305 92 920 240 192 775 83 131 1068 142 304 353 124 . . . . . Hover . | . . . . . . . . . . . . . . . . . . . . . Flight . | . . . . . . . . . . . . . . . . . . . . . Fastest Speed 50 | 50 80 110 120 120 120 140 140 140 140 130 140 120 120 130 150 147 147 147 147 50 Average Speed 141 | 79 98 114 120 120 132 140 140 140 140 136 141 120 136 158 157 147 147 147 163 150 Slowest Speed 270 | 80 110 140 120 120 270 140 140 140 140 140 200 120 240 270 180 150 147 147 230 190 Overloaded Moves . | . . . . . . . . . . . . . . . . . . . . . Propulsion Burnouts . | . . . . . . . . . . . . . . . . . . . . . Robots Hopped . | . . . . . . . . . . . . . . . . . . . . . Cave-ins Triggered . | . . . . . . . . . . . . . . . . . . . . . Exploration Rate (%) 37 | 5 55 37 69 28 56 52 6 83 3 38 25 3 43 6 86 3 71 6 98 18 Regions Visited 20 Branch Regions 3 Pre-discovered Areas . | . . . . . . . . . . . . . . . . . . . . . Known Exits Taken 7 | . . . . . 1 . 1 . 1 . . 1 . 1 . 1 . 1 . . Unknown Exits Taken 6 | 1 1 1 1 1 . . . . . . 1 . . . . . . . . . Scrap Searched 2 | . . 1 . 1 . . . . . . . . . . . . . . . . Spaces Dug 29 | . . . . . 3 . . . . . 15 . 4 . . . 2 . 4 1 Terrain Destroyed 280 | . 32 . . . 16 7 . 41 . . 31 1 25 8 23 . 4 . 89 3 Melee 19 | . . . . . 3 . . . . . 15 . . . . . . . . 1 Projectile 41 | . . . . . . . . . . . 3 1 5 8 1 . 4 . 17 2 AOE 220 | . 32 . . . 13 7 . 41 . . 13 . 20 . 22 . . . 72 . Terrain Rammed . | . . . . . . . . . . . . . . . . . . . . . Walls Destroyed . | . . . . . . . . . . . . . . . . . . . . . Machines Disabled . | . . . . . . . . . . . . . . . . . . . . . Actions | -11 -10 -10 -10 -9 -8 -8 -7 -7 -6 -6 -6 -5 -5 -4 -4 -3 -3 -2 -2 -1 --------- Run | Scr Mat Min Exi Min Mat Gar Fac Gar Fac Gar Fac Fac Gar Fac Gar Res Gar Res Gar Acc Total 10443 | 74 307 200 308 94 1458 324 227 924 98 212 1531 177 569 544 688 113 598 187 1161 649 Wait 964 | . 16 16 . . 272 23 14 6 8 16 266 25 64 38 7 2 18 2 83 88 Move 7657 | 65 239 145 304 91 975 239 192 774 83 131 1085 142 321 381 553 99 464 163 817 394 Hop . | . . . . . . . . . . . . . . . . . . . . . Pick Up 198 | 3 11 3 2 2 31 7 6 10 2 3 29 1 16 8 14 2 11 3 26 8 Fast Attach 84 | 5 1 1 . . 13 . 2 2 . 1 2 1 14 14 6 1 4 2 9 6 Attach 87 | 1 2 1 . . 9 2 2 10 2 4 16 2 12 7 2 1 2 1 6 5 Detach 30 | . . . . . 2 . 1 4 . 1 4 1 3 4 2 . 3 . 4 1 Swap 165 | . 7 3 1 . 15 6 4 11 1 2 26 . 16 11 10 2 17 3 22 8 Drop 164 | . 3 3 1 1 29 6 4 2 1 1 22 1 11 12 7 2 11 6 31 10 Fire 824 | . 28 28 . . 107 26 2 59 1 23 64 4 82 69 45 4 46 7 105 124 Melee 22 | . . . . . 3 . . 1 . . 17 . . . . . . . . 1 Ram 4 | . . . . . . . . . . 4 . . . . . . . . . . Kick . | . . . . . . . . . . . . . . . . . . . . . Crush 2 | . . . . . 1 . . . . . . . . . . . . . . 1 Escape Stasis 221 | . . . . . . 8 . 45 . 26 . . 29 . 41 . 18 . 54 . Rewire 18 | . . . . . . 6 . . . . . . . . 1 . 4 . 4 3 Trap 3 | . . . . . 1 1 . . . . . . 1 . . . . . . . Miscellaneous . | . . . . . . . . . . . . . . . . . . . . . Route ------- -11/Scrapyard -10/Materials (discovered 3 exits: [*Mat x2] / [*Min]) -10/Mines (discovered 3 exits: [*Mat x2] / *Exi) -10/Exiles -9/Mines -8/Materials (discovered 3 exits: *Fac / Sto / Gar) -8/Garrison (discovered 2 exits: *Fac x2) -7/Factory -7/Garrison (discovered 3 exits: *Fac x3) -6/Factory -6/Garrison -6/Factory (discovered 5 exits: *Fac / Low x2 / *Ext x2) -5/Factory -5/Garrison -4/Factory (discovered 2 exits: *Res / Gar) -4/Garrison (discovered 3 exits: *Res x3) -3/Research -3/Garrison (discovered 2 exits: *Res x2) -2/Research -2/Garrison (discovered 3 exits: [*Acc x3]) -1/Access History --------- Turn | Location | Event 6 | -11/Scrapyard | Discovered new exit (range 15) 64 | -11/Scrapyard | Entered Materials 166 | -10/Materials | Discovered new exit (range 8) 264 | -10/Materials | Discovered new exit (range 16) 337 | -10/Materials | Build established: Mutant 402 | -10/Materials | Discovered new exit (range 13) 417 | -10/Materials | Entered Mines 465 | -10/Mines | Discovered new exit (range 8) 511 | -10/Mines | Met a Derelict bent on vengeance 583 | -10/Mines | Discovered new exit (range 9) 689 | -10/Mines | Deemed a non-threat by the Exiles lab entrance 690 | -10/Mines | Discovered new exit (range 5) 695 | -10/Mines | Entered Exiles 725 | -10/Exiles | Met 8R-AWN 746 | -10/Exiles | Met EX-HEX 791 | -10/Exiles | Met EX-DEC 796 | -10/Exiles | Build established: Hauler-Mutant 824 | -10/Exiles | Met EX-BIN 841 | -10/Exiles | Aligned with FarCom system 842 | -10/Exiles | Given EX-Vault access code 875 | -10/Exiles | Opened EX-Vault 886 | -10/Exiles | Found PSU Rigger 910 | -10/Exiles | Warned to stay clear of 0b10 Research branches 1052 | -10/Exiles | Discovered new exit (range 10) 1064 | -10/Exiles | Left Exiles lab with PSU Rigger 1064 | -10/Exiles | Entered Mines 1071 | -9/Mines | Received a Rocket Launcher from a helpful Derelict 1158 | -9/Mines | Discovered new exit (range 16) 1176 | -9/Mines | Entered Materials 1176 | -8/Materials | Evolved 4 slots: Utility x4 1271 | -8/Materials | Identified exit to Storage 1522 | -8/Materials | Core integrity fell below 50% 1550 | -8/Materials | Lost 13 parts (1p3n1u8w) 2175 | -8/Materials | Discovered new exit (range 10) 3135 | -8/Materials | Identified exit to Garrison 3135 | -8/Materials | Entered Garrison 3184 | -8/Garrison | Triggered checkpoint 3212 | -8/Garrison | Garrison Relay disabled 3316 | -8/Garrison | Triggered checkpoint 3374 | -8/Garrison | Discovered new exit (range 8) 3506 | -8/Garrison | Triggered checkpoint 3572 | -8/Garrison | Discovered new exit (range 10) 3593 | -8/Garrison | Installed Relay Interface Framework 3599 | -8/Garrison | Entered Factory 3599 | -7/Factory | Evolved 2 slots: Power x1, Utility x1 3828 | -7/Factory | Repaired Imp. EM Pulse Cannon 3908 | -7/Factory | Identified exit to Garrison 3908 | -7/Factory | Entered Garrison 3920 | -7/Garrison | Triggered checkpoint 4012 | -7/Garrison | Garrison Relay disabled 4020 | -7/Garrison | Triggered checkpoint 4129 | -7/Garrison | Triggered checkpoint 4181 | -7/Garrison | Build established: Bothacker-Mutant 4200 | -7/Garrison | Triggered checkpoint 4283 | -7/Garrison | Discovered new exit (range 15) 4453 | -7/Garrison | Discovered new exit (range 9) 4602 | -7/Garrison | Triggered checkpoint 4615 | -7/Garrison | Discovered new exit (range 15) 4657 | -7/Garrison | Expanded RIF knowledge: Signal Jamming 4712 | -7/Garrison | Triggered checkpoint 4736 | -7/Garrison | Garrison Relay disabled 4970 | -7/Garrison | Triggered checkpoint 5022 | -7/Garrison | Garrison Relay disabled 5232 | -7/Garrison | Entered Factory 5232 | -6/Factory | Evolved 2 slots: Utility x2 5333 | -6/Factory | Fabricated Corruption Screen (x2) 5364 | -6/Factory | Identified exit to Garrison 5364 | -6/Factory | Entered Garrison 5364 | -6/Garrison | Accompanied by 1 ally 5382 | -6/Garrison | Triggered checkpoint 5423 | -6/Garrison | Garrison Relay disabled 5515 | -6/Garrison | Triggered checkpoint 5548 | -6/Garrison | Triggered checkpoint 5607 | -6/Garrison | Lost 7 parts (1p1n3u2w) 5615 | -6/Garrison | Core integrity fell below 50% 5617 | -6/Garrison | Discovered new exit (range 10) 5635 | -6/Garrison | Expanded RIF knowledge: Hotswap 5640 | -6/Garrison | Entered Factory 5830 | -6/Factory | Build established: Hauler-Mutant 6366 | -6/Factory | Repaired Arm. Huge Wheel 6643 | -6/Factory | Discovered new exit (range 6) 7096 | -6/Factory | Discovered new exit (range 7) 7577 | -6/Factory | Identified exit to Lower Caves 7577 | -6/Factory | Identified exit to Extension 7765 | -6/Factory | Entered another Factory area 7765 | -5/Factory | Evolved 2 slots: Propulsion x1, Utility x1 7924 | -5/Factory | Garrison activated, responded to threat 7978 | -5/Factory | Identified exit to Garrison 7978 | -5/Factory | Entered Garrison 7984 | -5/Garrison | Expanded RIF knowledge: Autooverride 8012 | -5/Garrison | Triggered checkpoint 8034 | -5/Garrison | Garrison Relay disabled 8382 | -5/Garrison | Triggered checkpoint 8500 | -5/Garrison | Discovered new exit (range 12) 8516 | -5/Garrison | Triggered checkpoint 8544 | -5/Garrison | Spotted B-75 Beast 8617 | -5/Garrison | Destroyed B-75 Beast 8646 | -5/Garrison | Lost 17 parts (3p3n6u5w) 8684 | -5/Garrison | Garrison Relay disabled 8811 | -5/Garrison | Entered Factory 8811 | -4/Factory | Evolved 2 slots: Propulsion x1, Utility x1 8965 | -4/Factory | Lost 5 parts (2n2u1w) 9062 | -4/Factory | Build established: Scavenger-Mutant 9235 | -4/Factory | Discovered new exit (range 5) 9378 | -4/Factory | Garrison activated, responded to threat 9403 | -4/Factory | Build established: Scavenger-Skirmisher 9654 | -4/Factory | Identified exit to Garrison 9654 | -4/Factory | Entered Garrison 9663 | -4/Garrison | Expanded RIF knowledge: Robot Detection 9748 | -4/Garrison | Triggered checkpoint 9790 | -4/Garrison | Garrison Relay disabled 9882 | -4/Garrison | Build established: Botlord-Mutant 9906 | -4/Garrison | Triggered checkpoint 9969 | -4/Garrison | Triggered checkpoint 10054 | -4/Garrison | Discovered new exit (range 13) 10114 | -4/Garrison | Triggered checkpoint 10172 | -4/Garrison | Garrison Relay disabled 10338 | -4/Garrison | Triggered checkpoint 10407 | -4/Garrison | Garrison Relay disabled 10470 | -4/Garrison | Discovered new exit (range 13) 10614 | -4/Garrison | Triggered checkpoint 10634 | -4/Garrison | Garrison Relay disabled 10671 | -4/Garrison | Discovered new exit (range 14) 10695 | -4/Garrison | Entered Research 10695 | -3/Research | Accompanied by 4 allies 10695 | -3/Research | Evolved 2 slots: Utility x2 10853 | -3/Research | Identified exit to Garrison 10855 | -3/Research | Entered Garrison 10855 | -3/Garrison | Accompanied by 4 allies 10904 | -3/Garrison | Triggered checkpoint 10975 | -3/Garrison | Garrison Relay disabled 11196 | -3/Garrison | Triggered checkpoint 11240 | -3/Garrison | Triggered checkpoint 11261 | -3/Garrison | Triggered checkpoint 11310 | -3/Garrison | Triggered checkpoint 11391 | -3/Garrison | Found Antimissile System 11394 | -3/Garrison | Found Antimissile System 11439 | -3/Garrison | Discovered new exit (range 10) 11462 | -3/Garrison | Expanded RIF knowledge: Alert ID Control 11597 | -3/Garrison | Discovered new exit (range 8) 11616 | -3/Garrison | Triggered checkpoint 11638 | -3/Garrison | Garrison Relay disabled 11695 | -3/Garrison | Entered Research 11695 | -2/Research | Accompanied by 5 allies 11695 | -2/Research | Evolved 2 slots: Utility x2 11956 | -2/Research | Identified exit to Garrison 11958 | -2/Research | Entered Garrison 11958 | -2/Garrison | Accompanied by 1 ally 11990 | -2/Garrison | Triggered checkpoint 12043 | -2/Garrison | Garrison Relay disabled 12138 | -2/Garrison | Triggered checkpoint 12375 | -2/Garrison | Spotted B-90 Cyclops 12530 | -2/Garrison | Phase Generator disabled 12651 | -2/Garrison | Destroyed B-90 Cyclops 12672 | -2/Garrison | Triggered checkpoint 12681 | -2/Garrison | Triggered checkpoint 12700 | -2/Garrison | Found Quantum Capacitor 12785 | -2/Garrison | Discovered new exit (range 9) 12826 | -2/Garrison | Triggered checkpoint 12856 | -2/Garrison | Garrison Relay disabled 13000 | -2/Garrison | Triggered checkpoint 13229 | -2/Garrison | Garrison Relay disabled 13286 | -2/Garrison | Discovered new exit (range 14) 13484 | -2/Garrison | Discovered new exit (range 14) 13522 | -2/Garrison | Expanded RIF knowledge: Command Fork 13566 | -2/Garrison | Triggered checkpoint 13588 | -2/Garrison | Garrison Relay disabled 13660 | -2/Garrison | Entered Access 13660 | -1/Access | Accompanied by 2 allies 13660 | -1/Access | Evolved 2 slots: Utility x2 13778 | -1/Access | Garrison activated, responded to threat 13968 | -1/Access | P-80 Master assimilated allied H-88 Terminator 14375 | -1/Access | Found Enh. Gamma Bomb Array 14472 | -1/Access | Released all parts (11) 14475 | -1/Access | System corruption reached 10% 14498 | -1/Access | Core integrity fell below 50% 14502 | -1/Access | Lost 6 parts (2p1n3u) 14517 | -1/Access | Core integrity fell below 20% 14527 | -1/Access | Destroyed by S-43 Plague with Heavy Machine Gun Last Messages --------------- 14472_ Released Lrg. Storage Unit. 14472_ Released Relay Coupler [Sentry]. 14472_ Released Adv. Targeting Computer. 14472_ Released Adv. Target Analyzer. 14472_ Released Enh. Gamma Bomb Array. 14472_ Acquired 33 matter. 14473_ Slug penetrates Wall. 14473_ Penetrated by Slug. 14473_ P-80 Master resets P-80 Master, system corruption cleaned. 14474_ U-05 Engineer repairs door. 14476_ R-10 Processor collects Relay Coupler [NC]. 14481_ Penetrated by Slug. 14481_ Slug penetrates Wall. 14482_ Detecting nearby Garrison Access. 14483_ Slug penetrates Signal Shield. 14485_ Slug penetrates Wall. 14493_ System corrupted: Matter fused (-10). 14508_ System corrupted: Matter fused (-9). 14522_ Penetrated by Slug. 14525_ Slug penetrates Wall. Map ----- +----------------------------------------------------+ | ?????????????????????# # [[[ #?????????? | | ?????????????????????# # [[[ #?????????? | | ?????????????????????# # #?????????? | | ?????????????????????# ^# #?????????? | | ?????????????????????# # ??????????? | | ?????????????????????# #############??????????? | | ?????????????????????# #??????????????????????? | | ?????????????????????# ps #??????????????????????? | | ?????????????????????# s #??????????????????????? | | ???????????????????### s ###????????????????????? | | ???????????????????# #????????????????????? | | ???????????????????# #????????????????????? | | ???????????????????# #????????????????????? | | ???????????????????# Y #????????????????????? | | ???????????????????# #????????????????????? | | ???????????????????# #????????????????????? | | ???????????????????# k #????????????????????? | | ???????????????????# #????????????????????? | | ???????????????????## ##????????????????????? | | ????????????????????# #?????????????????????? | | ????????????????????# #?????????????????????? | | ???????????# #??????# #?????????????????????? | | ???????????# #??????# #?????????????????????? | | ???????????# ######## #?????????????????????? | | ???????????# u #?????????????????????? | | ???????????# @ #?????????????????????? | | ???????????# #?????????????????????? | | ???????????# #?????????????????????? | | ?????????######+##### #?????????????????????? | | ?????????? ! # #?????????????????????? | | ?????????? # #?????????????????????? | | ?????????? # #?????????????????????? | | ?????????? ==] # #?????????????????????? | | ?????????? ==] # #?????????????????????? | | ?????????? == + #?????????????????????? | | ?????????? # s #?????????????????????? | | ?????????? # ws #?????????????????????? | | ?????????? # s #?????????????????????? | | ?????????? # s #?????????????????????? | | ?????????? # #?????????????????????? | | ?????????? # #?????????????????????? | | ??????????########### #?????????????????????? | | ??????????########### #####?????????????????? | | ????????? ##""??????????????????? | | ????????## ## "??????????????????? | | ?????????# ????????????????? | | ?????????# ????????????????? | | ?????????# ????????????????? | | ?????????# ????????????????? | | ?????????# ????????????????? | +----------------------------------------------------+ Best States ------------- Heat Dissipation 116 Energy Generation 43 Energy Capacity 1425 Matter Stores 300 Matter Capacity 600 Sight Range 16 Terrain Scan Range 16 Terrain Scan Density 210 ECM Strength 3 Armor Coverage 825 Resistance: TH 10 Core Shielding 20 Utility Shielding 33 Weapon Shielding 66 Weapon Cycling 30 Phase Shifting 15 Evasion (%) 55 Targeting Accuracy 16 Target Analysis 8 Recoil Reduction 4 Overload Amplification 75 Offensive Hacking 10 Relay Coupler Types 142 Relay Coupler Value 6 Item Schematics ----------------- None Robot Schematics ------------------ None Fabricated ------------ Corruption Screen | x2 | -6/Factory | Preloaded Alien Tech Used ----------------- None Achievements -------------- None Challenges ------------ None Game ------ Seed MyomerAccelerationKit Manual? 0 Play Time 02:59:21 Cumulative 235.3 hours Start 2021.03.19 @ 11:54:22 End 2021.03.24 @ 15:55:40 Sessions 9 Manual Loads 0 Difficulty Rogue Special Mode None Game No. 182 Rogue 182 Adventurer 0 Explorer 0 Win Type - Total 10 Types 5/0/1/1/0/2/1/0/0 Lore% 75 Gallery% 81 Achievement% 73 Wizard Run 0 Options --------- ASCII 0 Keyboard 1 Movement Numpad Keybinds 0 Fullscreen 1 Font 12/Terminus Map View 83x54 Tactical HUD 1 Map Filters NONE Filters LOW_CONTRAST(13,24,33) Steam 1 RUN: 9007ab0a-4e9a-4578-a5b7-aea1ce621387